[Event "Moscow-chW 2019"]
[Site "Moscow"]
[Date "2019.03.31"]
[Round "2.23"]
[White "Petrova, Elizaveta"]
[Black "Zakharova, Oksana"]
[Result "0-1"]
[ECO "A00"]
[WhiteElo "1570"]
[BlackElo "1751"]
[Annotator "NA RC"]
[PlyCount "154"]
[EventDate "2019.03.30"]
[EventType "swiss"]
[EventCountry "RUS"]
[SourceTitle "playchess.com"]
[Source "ChessBase"]
[SourceQuality "1"]
[TimeControl "5400+30"]

1. d4 Nf6 2. c4 e6 3. Nf3 Bb4+ 4. Bd2 Bxd2+ 5. Nbxd2 O-O 6. e3 d6 7. Be2 Nbd7 8. O-O e5 9. d5 Re8 10. e4 Nf8 11. b4 Qe7 12. Qc2 Ng6 13. c5 Nf4 14. Nb3 N6h5 15. Bb5 Rd8 16. Rfe1 Bg4 17. Qc3 Qf6 18. Nbd2 Qg6 19. g3 Nh3+ 20. Kf1 f5 21. Ng1 Nxg1 22. Kxg1 fxe4 23. Nxe4 Rf8 24. Re3 Bf5 25. Qe1 Nf4 26. Bf1 Nxd5 27. Bc4 Be6 28. Bxd5 Bxd5 29. cxd6 cxd6 30. Rd1 Bxe4 31. Rxe4 Rad8 32. Qe3 Qf5 33. Re1 h6 34. Qb3+ Kh8 35. R1e2 Rf6 36. a4 Rc8 37. Qe3 Rf7 38. Kg2 b6 39. a5 bxa5 40. bxa5 Rfc7 41. Rd2 Rc3 42. Qe2 Qf6 43. Re3 R3c5 44. a6 Rc1 45. Rd1 Rxd1 46. Qxd1 Qe6 47. Rd3 Rc6 48. Rb3 d5 49. Rb8+ Kh7 50. Qb1+ e4 51. Rb7 Rxa6 52. Qd1 Qf5 53. Qd4 Rf6 54. Rb3 a5 55. Ra3 Ra6 56. h4 Qe6 57. Ra4 Qc6 58. Ra3 a4 59. g4 Qb5 60. g5 h5 61. Qd1 Kg6 62. Kg3 Qc4 63. f4 d4 64. f5+ Kxf5 65. Qxh5 Qc7+ 66. Kh3 e3 67. Qg4+ Kg6 68. Qe4+ Kf7 69. Qd5+ Ke7 70. Qe4+ Kf8 71. Qf5+ Kg8 72. Qd5+ Qf7 73. Qd8+ Qf8 74. Qd5+ Kh8 75. Qxd4 Qxa3 76. Qd8+ Kh7 77. g6+ Rxg6 0-1

[Event "Moscow-chW 2019"]
[Site "Moscow"]
[Date "2019.04.02"]
[Round "4.3"]
[White "Diakonova, Ekaterina"]
[Black "Zotova, Anastasia"]
[Result "1/2-1/2"]
[ECO "B90"]
[WhiteElo "2214"]
[BlackElo "2148"]
[Annotator "NA RC"]
[PlyCount "95"]
[EventDate "2019.03.30"]
[EventType "swiss"]
[EventCountry "RUS"]
[SourceTitle "playchess.com"]
[Source "ChessBase"]
[SourceQuality "1"]
[TimeControl "5400+30"]

1. e4 {[%emt 0:00:00]} c5 {[%emt 0:00:00]} 2. Nf3 {[%emt 0:00:00]} d6 {[%emt 0:00:00]} 3. d4 {[%emt 0:00:00]} cxd4 {[%emt 0:00:00]} 4. Nxd4 {[%emt 0:00:00]} Nf6 {[%emt 0:00:00]} 5. Nc3 {[%emt 0:00:00]} a6 {[%emt 0:00:00]} 6. h3 {[%emt 0:00:00]} e5 {[%emt 0:00:05]} 7. Nde2 {[%emt 0:00:00]} h5 {[%emt 0:00:08]} 8. g3 {[%emt 0:00:12]} Be7 {[%emt 0:00:10]} 9. a4 {[%emt 0:00:53]} b6 {[%emt 0:02:08]} 10. Bg2 {[%emt 0:00:59]} Bb7 {[%emt 0:00:39]} 11. O-O {[%emt 0:12:13]} Nbd7 {[%emt 0:05:12]} 12. Nd5 {[%emt 0:02:08]} Nxd5 {[%emt 0:01:30]} 13. exd5 {[%emt 0:00:05]} Rc8 {[%emt 0:01:00]} 14. Be3 {[%emt 0:04:07]} Qc7 {[%emt 0:02:54]} 15. Rc1 {[%emt 0:04:17]} b5 {[%emt 0:02:40]} 16. f4 {[%emt 0:11:10]} h4 {[%emt 0:04:54]} 17. g4 {[%emt 0:01:01]} exf4 {[%emt 0:01:26]} 18. Nxf4 {[%emt 0:02:40]} Ne5 {[%emt 0:02:10]} 19. Nh5 {[%emt 0:03:21]} O-O {[%emt 0:03:40]} 20. c3 {[%emt 0:09:41]} Qc4 {[%emt 0:05:03]} 21. b3 {[%emt 0:09:27]} Qd3 {[%emt 0:01:57]} 22. Bd4 {[%emt 0:00:16]} Qxd1 {[%emt 0:01:34]} 23. Rcxd1 {[%emt 0:00:37]} Bg5 {[%emt 0:00:50]} 24. Ra1 {[%emt 0:04:54]} Ra8 {[%emt 0:06:47]} 25. Nf4 {[%emt 0:11:11]} Rfe8 {[%emt 0:02:39]} 26. Bb6 {[%emt 0:01:51]} Rac8 {[%emt 0:08:02]} 27. Bd4 {[%emt 0:00:10]} Ra8 {[%emt 0:00:23]} 28. Kh1 {[%emt 0:00:04]} Bxf4 {[%emt 0:01:21]} 29. Rxf4 {[%emt 0:00:05]} Nd3 {[%emt 0:00:20]} 30. Rff1 {[%emt 0:01:41]} Re2 {[%emt 0:01:08]} 31. axb5 {[%emt 0:01:04]} axb5 {[%emt 0:01:43]} 32. Rxa8+ {[%emt 0:00:04]} Bxa8 {[%emt 0:00:03]} 33. Ra1 {[%emt 0:00:02]} Bb7 {[%emt 0:00:46]} 34. c4 {[%emt 0:08:16]} bxc4 {[%emt 0:01:21]} 35. bxc4 {[%emt 0:00:04]} Rc2 {[%emt 0:01:50]} 36. Rd1 {[%emt 0:08:27]} Nf4 {[%emt 0:02:26]} 37. Bf1 {[%emt 0:00:05]} Kf8 {[%emt 0:13:29]} 38. Be3 {[%emt 0:04:10]} Ne2 {[%emt 0:01:32]} 39. Bxe2 {[%emt 0:00:05]} Rxe2 {[%emt 0:00:03]} 40. Bg5 {[%emt 0:01:07]} Re4 {[%emt 0:03:04]} 41. Rb1 {[%emt 0:01:14]} Ba6 {[%emt 0:00:26]} 42. c5 {[%emt 0:00:44]} dxc5 {[%emt 0:00:45]} 43. d6 {[%emt 0:00:26]} Ke8 {[%emt 0:00:07]} 44. Rb8+ {[%emt 0:01:07]} Kd7 {[%emt 0:00:02]} 45. Rd8+ {[%emt 0:00:01]} Kc6 {[%emt 0:00:14]} 46. d7 {[%emt 0:01:07]} Bc4 {[%emt 0:00:29]} 47. Rc8+ {[%emt 0:01:39]} Kxd7 {[%emt 0:00:33]} 48. Rxc5 {[%emt 0:00:01]} 1/2-1/2

[Event "Moscow-chW 2019"]
[Site "Moscow"]
[Date "2019.04.06"]
[Round "8.1"]
[White "Borisova, Ekaterina"]
[Black "Charochkina, Daria"]
[Result "1-0"]
[ECO "D02"]
[WhiteElo "2255"]
[BlackElo "2330"]
[Annotator "NA"]
[PlyCount "49"]
[EventDate "2019.03.30"]
[EventType "swiss"]
[EventCountry "RUS"]
[SourceTitle "playchess.com"]
[Source "ChessBase"]
[SourceQuality "1"]
[TimeControl "5400+30"]

1. d4 {[%emt 0:00:00]} d5 {[%emt 0:02:01]} 2. Nf3 {[%emt 0:00:08]} Nf6 {[%emt 0:00:06]} 3. c4 {[%emt 0:00:04]} c6 {[%emt 0:00:02]} 4. g3 {[%emt 0:00:05]} dxc4 {[%emt 0:00:04]} 5. Bg2 {[%emt 0:00:06]} b5 {[%emt 0:00:24]} 6. Ne5 {[%emt 0:01:15] LiveBook: 29 Games} Bb7 {[%emt 0:00:05]} 7. O-O {[%emt 0:00:51]} e6 {[%emt 0:00:11]} 8. Nc3 {[%emt 0:03:01]} Qc8 {[%emt 0:00:19]} 9. b3 {[%emt 0:05:05]} Nd5 {[%emt 0:34:22]} 10. Qc2 {[%emt 0:11:27]} cxb3 {[%emt 0:11:17]} 11. Qxb3 {[%emt 0:00:57]} Nd7 {[%emt 0:11:25]} 12. Nxd5 {[%emt 0:07:05]} Nxe5 {[%emt 0:01:53]} 13. Nc3 $16 {[%emt 0:05:39]} Nd7 {[%emt 0:02:45]} 14. Ba3 {[%emt 0:06:47]} Bxa3 {[%emt 0:05:54]} 15. Qxa3 {[%emt 0:00:07]} Nb6 {[%emt 0:00:13]} 16. Qc5 {[%emt 0:06:35]} Qd7 {[%emt 0:01:10]} 17. a4 {[%emt 0:03:14]} b4 {[%emt 0:02:48]} 18. Qxb4 {[%emt 0:11:20]} Nd5 {[%emt 0:00:03]} 19. Bxd5 {[%emt 0:00:44]} exd5 {[%emt 0:00:05]} 20. Rfb1 {[%emt 0:03:20]} Ba6 {[%emt 0:00:56]} 21. e4 {[%emt 0:00:17]} f6 {[%emt 0:01:04]} 22. exd5 {[%emt 0:01:44]} cxd5 {[%emt 0:00:03]} 23. Nb5 {[%emt 0:07:23]} Kf7 {[%emt 0:01:10]} 24. Rc1 {[%emt 0:00:50]} Rab8 {[%emt 0:06:18]} 25. Qa5 {[%emt 0:00:21]} 1-0

[Event "Moscow-chW 2019"]
[Site "Moscow"]
[Date "2019.04.06"]
[Round "8.2"]
[White "Utiatskaja, Irina"]
[Black "Fominykh, Maria"]
[Result "1-0"]
[ECO "A65"]
[WhiteElo "2210"]
[BlackElo "2259"]
[Annotator "NA"]
[PlyCount "85"]
[EventDate "2019.03.30"]
[EventType "swiss"]
[EventCountry "RUS"]
[SourceTitle "playchess.com"]
[Source "ChessBase"]
[SourceQuality "1"]
[TimeControl "5400+30"]

1. d4 {[%emt 0:00:00]} Nf6 {[%emt 0:03:12]} 2. c4 {[%emt 0:00:26]} c5 {[%emt 0:02:43]} 3. d5 {[%emt 0:00:55]} e6 {[%emt 0:01:02]} 4. Nc3 {[%emt 0:00:06]} exd5 {[%emt 0:00:12]} 5. cxd5 {[%emt 0:00:06]} d6 {[%emt 0:00:02]} 6. e4 {[%emt 0:01:09]} g6 {[%emt 0:00:01]} 7. Bd3 {[%emt 0:01:00]} Bg7 {[%emt 0:00:06] LiveBook: 681 Games} 8. Nge2 {[%emt 0:00:03]} O-O {[%emt 0:00:16]} 9. O-O {[%emt 0:00:09]} Na6 $14 {[%emt 0:02:07]} 10. Ng3 {[%emt 0:00:52]} Re8 {[%emt 0:01:52]} 11. a4 {[%emt 0:10:50]} Nc7 {[%emt 0:01:50]} 12. Bg5 {[%emt 0:08:26]} h6 {[%emt 0:01:41]} 13. Bd2 {[%emt 0:00:56]} b6 {[%emt 0:05:45]} 14. f4 {[%emt 0:04:33]} Ng4 {[%emt 0:15:52]} 15. Nce2 {[%emt 0:03:30]} Ba6 {[%emt 0:36:07]} 16. Bxa6 {[%emt 0:01:40]} Nxa6 {[%emt 0:00:03]} 17. h3 {[%emt 0:01:17]} Nf6 {[%emt 0:00:08]} 18. Nc3 {[%emt 0:01:52]} c4 {[%emt 0:02:42]} 19. Qf3 {[%emt 0:06:11]} Nc5 {[%emt 0:01:11]} 20. Rae1 {[%emt 0:00:16]} Nb3 {[%emt 0:07:54]} 21. Be3 {[%emt 0:03:00]} a6 {[%emt 0:02:41]} 22. e5 {[%emt 0:12:17]} dxe5 {[%emt 0:00:51]} 23. f5 {[%emt 0:03:14]} Nd4 {[%emt 0:08:26]} 24. Qf2 {[%emt 0:00:24]} Kh8 {[%emt 0:03:09]} 25. fxg6 {[%emt 0:09:25]} fxg6 {[%emt 0:00:03]} 26. Bxh6 {[%emt 0:02:05]} Bxh6 {[%emt 0:00:53]} 27. Qxf6+ {[%emt 0:00:03]} Qxf6 {[%emt 0:00:31]} 28. Rxf6 {[%emt 0:00:05]} Rg8 {[%emt 0:01:53]} 29. Rxb6 {[%emt 0:07:47]} Nc2 {[%emt 0:00:18]} 30. Rxe5 {[%emt 0:01:45]} Be3+ {[%emt 0:00:01]} 31. Rxe3 {[%emt 0:00:09]} Nxe3 {[%emt 0:00:02]} 32. Re6 {[%emt 0:02:27]} Nc2 {[%emt 0:00:44]} 33. Nge4 {[%emt 0:02:04]} Nd4 {[%emt 0:00:37]} 34. Rb6 {[%emt 0:03:18]} Rab8 {[%emt 0:00:25]} 35. Rxa6 {[%emt 0:00:03]} Rxb2 {[%emt 0:00:06]} 36. d6 {[%emt 0:00:08]} Rd8 {[%emt 0:02:01]} 37. Ra7 {[%emt 0:00:45]} Nf5 {[%emt 0:00:32]} 38. Nf6 {[%emt 0:02:12]} Ng7 {[%emt 0:00:06]} 39. Rc7 {[%emt 0:01:31]} Rd2 {[%emt 0:00:45]} 40. Nce4 {[%emt 0:00:41]} Rd4 {[%emt 0:00:39]} 41. Ng5 {[%emt 0:00:53]} Rf8 {[%emt 0:00:01]} 42. Nf7+ {[%emt 0:00:25]} Rxf7 {[%emt 0:00:03]} 43. Rxf7 {[%emt 0:00:14]} 1-0

[Event "Moscow-chW 2019"]
[Site "Moscow"]
[Date "2019.04.06"]
[Round "8.3"]
[White "Kirchei, Viktoriia"]
[Black "Smirnova, Ekaterina"]
[Result "1/2-1/2"]
[ECO "C07"]
[WhiteElo "2086"]
[BlackElo "2153"]
[Annotator "NA"]
[PlyCount "143"]
[EventDate "2019.03.30"]
[EventType "swiss"]
[EventCountry "RUS"]
[SourceTitle "playchess.com"]
[Source "ChessBase"]
[SourceQuality "1"]
[TimeControl "5400+30"]

1. e4 {[%emt 0:03:55]} e6 {[%emt 0:00:00]} 2. d4 {[%emt 0:00:30]} d5 {[%emt 0:00:00]} 3. Nd2 {[%emt 0:00:04]} c5 {[%emt 0:00:00]} 4. exd5 {[%emt 0:00:12]} Qxd5 {[%emt 0:00:00]} 5. dxc5 {[%emt 0:00:07]} Bxc5 {[%emt 0:00:00]} 6. Ngf3 {[%emt 0:00:51]} Nf6 {[%emt 0:00:03]} 7. Bc4 {[%emt 0:00:15]} Qc6 {[%emt 0:00:16]} 8. Qe2 {[%emt 0:00:08]} O-O {[%emt 0:00:32]} 9. O-O {[%emt 0:04:08]} a6 {[%emt 0:00:09]} 10. Ne5 {[%emt 0:00:50]} Qc7 {[%emt 0:00:25]} 11. Ndf3 {[%emt 0:03:40]} Nbd7 {[%emt 0:06:18]} 12. Nxf7 {[%emt 0:11:25]} Rxf7 {[%emt 0:00:01]} 13. Bxe6 {[%emt 0:00:38]} Nf8 {[%emt 0:06:24]} 14. Bxf7+ {[%emt 0:00:26]} Qxf7 {[%emt 0:00:17]} 15. Ng5 {[%emt 0:03:25]} Bg4 {[%emt 0:01:44]} 16. Qxg4 {[%emt 0:03:16]} Nxg4 {[%emt 0:02:12]} 17. Nxf7 {[%emt 0:00:42]} Kxf7 {[%emt 0:00:02]} 18. h3 {[%emt 0:00:52]} Nf6 {[%emt 0:00:07]} 19. Re1 {[%emt 0:01:15]} Ne6 {[%emt 0:01:37]} 20. Be3 {[%emt 0:02:07]} Bf8 {[%emt 0:04:12]} 21. Rad1 {[%emt 0:02:44]} Rc8 {[%emt 0:00:16]} 22. c3 {[%emt 0:01:34]} Rc4 {[%emt 0:04:22]} 23. g4 {[%emt 0:08:01]} h6 {[%emt 0:01:01]} 24. f3 {[%emt 0:09:03]} g5 {[%emt 0:00:43]} 25. Kg2 {[%emt 0:01:31]} Rc6 {[%emt 0:07:59]} 26. h4 {[%emt 0:00:46]} Bd6 {[%emt 0:01:49]} 27. hxg5 {[%emt 0:00:46]} hxg5 {[%emt 0:00:01]} 28. a4 {[%emt 0:06:27]} Nf4+ {[%emt 0:01:56]} 29. Bxf4 {[%emt 0:00:08]} Bxf4 {[%emt 0:00:09]} 30. Rd4 {[%emt 0:00:35]} a5 {[%emt 0:01:38]} 31. Re2 {[%emt 0:04:13]} Rc8 {[%emt 0:03:26]} 32. Rd3 {[%emt 0:03:48]} b6 {[%emt 0:03:22]} 33. Kf2 {[%emt 0:05:49]} Rh8 {[%emt 0:01:30]} 34. Kg1 {[%emt 0:00:06]} Rc8 {[%emt 0:00:30]} 35. Kf1 {[%emt 0:02:38]} Rc5 {[%emt 0:08:12]} 36. Ke1 {[%emt 0:03:55]} Nd5 {[%emt 0:02:30]} 37. Re4 {[%emt 0:00:38]} Kf6 {[%emt 0:07:26]} 38. Kd1 {[%emt 0:07:53]} Be5 {[%emt 0:04:54]} 39. Kc1 {[%emt 0:02:37]} Nf4 {[%emt 0:06:22]} 40. Rd1 {[%emt 0:00:15]} Ng6 {[%emt 0:00:28]} 41. Rd7 {[%emt 0:00:44]} Rc6 {[%emt 0:00:50]} 42. Rd5 {[%emt 0:00:21]} Bf4+ {[%emt 0:01:09]} 43. Kd1 {[%emt 0:00:24]} Ne5 {[%emt 0:01:03]} 44. Ke2 {[%emt 0:00:07]} Nc4 {[%emt 0:05:22]} 45. b3 {[%emt 0:01:25]} Nd6 {[%emt 0:02:39]} 46. Red4 {[%emt 0:00:13]} Ke6 {[%emt 0:02:16]} 47. c4 {[%emt 0:00:24]} Rc8 {[%emt 0:01:42]} 48. Rd1 {[%emt 0:00:57]} Kd7 {[%emt 0:02:05]} 49. Re1 {[%emt 0:01:56]} Kc6 {[%emt 0:00:30]} 50. Kd3 {[%emt 0:00:12]} Rh8 {[%emt 0:00:41]} 51. Re2 {[%emt 0:01:00]} Rh1 {[%emt 0:00:32]} 52. Kc2 {[%emt 0:00:10]} Rc1+ {[%emt 0:01:28]} 53. Kb2 {[%emt 0:00:02]} Rf1 {[%emt 0:00:05]} 54. Rd3 {[%emt 0:00:07]} Kc5 {[%emt 0:01:01]} 55. Rd5+ {[%emt 0:00:31]} Kc6 {[%emt 0:01:09]} 56. Rd3 {[%emt 0:00:05]} Kd7 {[%emt 0:04:52]} 57. Kc3 {[%emt 0:00:39]} Rh1 {[%emt 0:00:39]} 58. Kd4 {[%emt 0:00:50]} Kc6 {[%emt 0:00:34]} 59. Kc3 {[%emt 0:00:15]} Rh6 {[%emt 0:00:07]} 60. Re7 {[%emt 0:00:25]} Rf6 {[%emt 0:01:32]} 61. Rd5 {[%emt 0:02:05]} Rh6 {[%emt 0:03:18]} 62. Rd3 {[%emt 0:00:07]} Nb7 {[%emt 0:00:18]} 63. Re2 {[%emt 0:02:17]} Nc5 {[%emt 0:00:10]} 64. Rd1 {[%emt 0:00:43]} Rh3 {[%emt 0:00:18]} 65. Rf1 {[%emt 0:00:02]} Nd7 {[%emt 0:02:14]} 66. Re6+ {[%emt 0:00:25]} Kc5 {[%emt 0:01:34]} 67. Kd3 {[%emt 0:01:56]} Kb4 {[%emt 0:00:36]} 68. Kd4 {[%emt 0:00:30]} Kxb3 {[%emt 0:00:51]} 69. Re2 {[%emt 0:00:31]} Kb4 {[%emt 0:01:28]} 70. Rb1+ {[%emt 0:01:17]} Ka3 {[%emt 0:00:01]} 71. Ra1+ {[%emt 0:00:38]} Kb3 {[%emt 0:00:17]} 72. Rb1+ {[%emt 0:00:27]} 1/2-1/2

[Event "Moscow-chW 2019"]
[Site "Moscow"]
[Date "2019.04.06"]
[Round "8.4"]
[White "Mirzoeva, Elmira"]
[Black "Zotova, Anastasia"]
[Result "1-0"]
[ECO "A48"]
[WhiteElo "2262"]
[BlackElo "2148"]
[Annotator "NA"]
[PlyCount "91"]
[EventDate "2019.03.30"]
[EventType "swiss"]
[EventCountry "RUS"]
[SourceTitle "playchess.com"]
[Source "ChessBase"]
[SourceQuality "1"]
[TimeControl "5400+30"]

1. d4 {[%emt 0:00:00]} Nf6 {[%emt 0:00:00]} 2. Nf3 {[%emt 0:00:00]} g6 {[%emt 0:00:00]} 3. Nbd2 {[%emt 0:00:15]} d5 {[%emt 0:00:45]} 4. e3 {[%emt 0:00:19]} Bg7 {[%emt 0:00:24]} 5. b4 {[%emt 0:00:30]} O-O {[%emt 0:00:55]} 6. c4 {[%emt 0:01:16] LiveBook: 143 Games} Nbd7 {[%emt 0:01:26]} 7. Be2 {[%emt 0:02:20]} Re8 {[%emt 0:01:28]} 8. Bb2 {[%emt 0:02:14]} b6 {[%emt 0:02:10]} 9. O-O {[%emt 0:01:18]} c5 $14 {[%emt 0:01:59]} 10. dxc5 {[%emt 0:12:33]} bxc5 {[%emt 0:00:18]} 11. b5 {[%emt 0:01:05]} (11. cxd5 $16 cxb4 12. a3) 11... Bb7 {[%emt 0:02:37]} 12. a4 {[%emt 0:02:51]} e5 {[%emt 0:02:44]} 13. cxd5 {[%emt 0:02:22]} e4 {[%emt 0:03:32]} 14. Ng5 {[%emt 0:03:00]} h6 {[%emt 0:02:57]} 15. Nh3 {[%emt 0:01:47]} Nxd5 {[%emt 0:00:51]} 16. Bxg7 {[%emt 0:00:43]} Kxg7 {[%emt 0:00:02]} 17. Qc2 {[%emt 0:02:19]} Qe7 {[%emt 0:04:22]} 18. Rac1 {[%emt 0:05:38]} Rac8 {[%emt 0:01:38]} 19. Rfd1 {[%emt 0:03:54]} Kh7 {[%emt 0:04:08]} 20. a5 {[%emt 0:06:47]} f5 {[%emt 0:03:49]} 21. Nc4 {[%emt 0:09:01]} Ne5 {[%emt 0:03:04]} 22. Qb2 {[%emt 0:01:34]} g5 {[%emt 0:05:23]} 23. Nxe5 {[%emt 0:04:45]} Qxe5 {[%emt 0:00:08]} 24. Qxe5 {[%emt 0:00:03]} Rxe5 {[%emt 0:00:02]} 25. Bc4 {[%emt 0:06:33]} Rc7 {[%emt 0:03:02]} 26. Kf1 {[%emt 0:06:58]} Kg6 {[%emt 0:05:03]} 27. g3 {[%emt 0:04:36]} Kf6 {[%emt 0:04:58]} 28. Rd2 {[%emt 0:05:26]} Ke7 {[%emt 0:02:42]} 29. Ng1 {[%emt 0:03:49]} f4 {[%emt 0:11:40]} 30. exf4 {[%emt 0:00:52]} gxf4 {[%emt 0:00:09]} 31. gxf4 {[%emt 0:00:36]} Nxf4 {[%emt 0:00:14]} 32. Ne2 {[%emt 0:00:15]} Nh3 {[%emt 0:02:08]} 33. Nc3 {[%emt 0:02:31]} Rg5 {[%emt 0:04:23]} 34. Re1 {[%emt 0:05:21]} Rd7 {[%emt 0:03:29]} 35. Rxd7+ {[%emt 0:01:08]} Kxd7 {[%emt 0:00:01]} 36. Re3 {[%emt 0:02:02]} Rg1+ {[%emt 0:01:23]} 37. Ke2 {[%emt 0:00:01]} Nf4+ {[%emt 0:04:27]} 38. Kd2 {[%emt 0:00:02]} Ng2 {[%emt 0:04:45]} 39. Rg3 {[%emt 0:01:01]} e3+ {[%emt 0:03:10]} 40. fxe3 {[%emt 0:00:02]} Ra1 {[%emt 0:00:24]} 41. a6 {[%emt 0:01:19]} Ba8 {[%emt 0:00:14]} 42. Rg7+ {[%emt 0:00:06]} Kd6 {[%emt 0:00:06]} 43. Rxa7 {[%emt 0:00:20]} Bf3 {[%emt 0:00:07]} 44. b6 {[%emt 0:00:23]} Bc6 {[%emt 0:01:20]} 45. b7 {[%emt 0:00:33]} Kc7 {[%emt 0:00:15]} 46. Ra8 {[%emt 0:00:09]} 1-0

[Event "Moscow-chW 2019"]
[Site "Moscow"]
[Date "2019.04.07"]
[Round "9.1"]
[White "Akopova, Anna"]
[Black "Borisova, Ekaterina"]
[Result "0-1"]
[ECO "D45"]
[WhiteElo "2128"]
[BlackElo "2255"]
[Annotator "NA"]
[PlyCount "141"]
[EventDate "2019.03.30"]
[EventType "swiss"]
[EventCountry "RUS"]
[SourceTitle "playchess.com"]
[Source "ChessBase"]
[SourceQuality "1"]
[TimeControl "5400+30"]

1. d4 {[%emt 0:08:12]} d5 {[%emt 0:00:00]} 2. c4 {[%emt 0:00:04]} c6 {[%emt 0:00:00]} 3. Nc3 {[%emt 0:00:03]} Nf6 {[%emt 0:00:54]} 4. e3 {[%emt 0:00:06]} e6 {[%emt 0:00:51]} 5. Nf3 {[%emt 0:00:05]} Nbd7 {[%emt 0:00:06]} 6. Qc2 {[%emt 0:00:05]} b6 {[%emt 0:00:08]} 7. Bd3 {[%emt 0:03:56]} Bb7 {[%emt 0:00:11]} 8. O-O {[%emt 0:01:02]} Be7 {[%emt 0:00:06]} 9. Rd1 {[%emt 0:06:07]} O-O {[%emt 0:06:42]} 10. e4 {[%emt 0:00:46]} dxe4 {[%emt 0:02:26]} 11. Nxe4 {[%emt 0:00:26]} Nxe4 {[%emt 0:01:57]} 12. Bxe4 {[%emt 0:00:05]} Nf6 {[%emt 0:00:43]} 13. Be3 Nxe4 {[%emt 0:15:21]} 14. Qxe4 {[%emt 0:08:56]} Qc8 {[%emt 0:00:06]} 15. c5 {[%emt 0:06:55]} Qd7 {[%emt 0:03:56]} 16. Rac1 {[%emt 0:19:38]} Qd5 {[%emt 0:04:44]} 17. Qf4 {[%emt 0:09:59]} Ba6 $11 {[%emt 0:07:07]} 18. Nd2 {[%emt 0:18:21]} Rac8 {[%emt 0:09:37]} 19. Qe4 {[%emt 0:11:27]} Rfd8 {[%emt 0:04:31]} 20. b4 {[%emt 0:01:18]} Qd7 {[%emt 0:06:17]} 21. f3 {[%emt 0:02:18]} bxc5 {[%emt 0:03:06]} 22. bxc5 {[%emt 0:00:17]} Be2 {[%emt 0:00:48]} 23. Re1 {[%emt 0:00:19]} Bb5 {[%emt 0:00:05]} 24. Qc2 {[%emt 0:00:40]} Bh4 {[%emt 0:07:28]} 25. g3 {[%emt 0:00:30]} Bf6 {[%emt 0:00:09]} 26. a4 {[%emt 0:00:47]} Bxd4 {[%emt 0:04:04]} 27. axb5 {[%emt 0:00:04]} Bxe3+ {[%emt 0:00:03]} 28. Rxe3 {[%emt 0:00:03]} Qxd2 {[%emt 0:00:04]} 29. Qxd2 {[%emt 0:00:03]} Rxd2 {[%emt 0:00:04]} 30. Ra3 {[%emt 0:00:47]} Rd7 {[%emt 0:04:17]} 31. b6 {[%emt 0:00:51]} axb6 {[%emt 0:00:15]} 32. cxb6 {[%emt 0:00:04]} h5 {[%emt 0:00:47]} 33. Rb1 {[%emt 0:01:22]} Rb8 {[%emt 0:04:04]} 34. Rc3 {[%emt 0:00:43]} Rd6 {[%emt 0:01:15]} 35. Rc5 {[%emt 0:00:31]} g6 {[%emt 0:00:14]} 36. Ra5 {[%emt 0:00:20]} Kg7 {[%emt 0:01:07]} 37. Kf2 {[%emt 0:00:44]} Kf6 {[%emt 0:01:32]} 38. Ke3 {[%emt 0:00:25]} c5 {[%emt 0:00:25]} 39. b7 {[%emt 0:00:35]} Rd7 {[%emt 0:00:09]} 40. Rab5 {[%emt 0:00:24]} c4 {[%emt 0:00:20]} 41. Kf4 {[%emt 0:00:35]} c3 {[%emt 0:00:16]} 42. g4 {[%emt 0:00:32]} c2 {[%emt 0:04:20]} 43. g5+ {[%emt 0:00:12]} Ke7 {[%emt 0:01:30]} 44. Rc1 {[%emt 0:00:08]} Rd2 {[%emt 0:00:36]} 45. h4 {[%emt 0:01:05]} Rd4+ {[%emt 0:01:48]} 46. Ke5 {[%emt 0:00:31]} Rc4 {[%emt 0:00:33]} 47. Rb2 {[%emt 0:00:35]} Rc7 {[%emt 0:00:19]} 48. Rcxc2 {[%emt 0:00:27]} Rxc2 {[%emt 0:00:06]} 49. Rxc2 {[%emt 0:00:05]} Rxb7 {[%emt 0:00:03]} 50. f4 {[%emt 0:00:48]} Rb5+ {[%emt 0:00:17]} 51. Ke4 {[%emt 0:00:05]} Rb3 {[%emt 0:01:02]} 52. Rc7+ {[%emt 0:00:45]} Kf8 {[%emt 0:00:10]} 53. f5 {[%emt 0:00:46]} Rb4+ {[%emt 0:00:31]} 54. Kf3 {[%emt 0:00:26]} gxf5 {[%emt 0:00:42]} 55. Kg3 {[%emt 0:00:11]} Kg7 {[%emt 0:00:00]} 56. Ra7 {[%emt 0:00:14]} Rb3+ {[%emt 0:00:05]} 57. Kg2 {[%emt 0:00:11]} Kg6 {[%emt 0:00:10]} 58. Ra8 {[%emt 0:00:05]} Kg7 {[%emt 0:01:30]} 59. Ra7 {[%emt 0:00:05]} Rb8 {[%emt 0:00:11]} 60. Kg3 {[%emt 0:00:09]} Kg6 {[%emt 0:00:06]} 61. Ra6 {[%emt 0:00:05]} Re8 {[%emt 0:00:06]} 62. Kf4 {[%emt 0:00:10]} f6 {[%emt 0:00:47]} 63. gxf6 {[%emt 0:00:05]} Kxf6 {[%emt 0:00:03]} 64. Ra7 {[%emt 0:00:39]} Rg8 {[%emt 0:00:12]} 65. Rh7 {[%emt 0:00:11]} Rg4+ {[%emt 0:00:04]} 66. Kf3 {[%emt 0:00:04]} Rxh4 {[%emt 0:00:06]} 67. Kg3 {[%emt 0:00:06]} Rg4+ {[%emt 0:00:04]} 68. Kf3 {[%emt 0:00:03]} h4 {[%emt 0:00:04]} 69. Rh6+ {[%emt 0:00:03]} Ke5 {[%emt 0:00:06]} 70. Kf2 {[%emt 0:00:06]} f4 {[%emt 0:00:18]} 71. Ke2 {[%emt 0:00:19]} 0-1